[Event "FIDE World Senior-50 CC 2023"]
[Site "Terrasini"]
[Date "2023.10.25"]
[Round "1.8"]
[White "Holzke, Frank"]
[Black "Luciani, Valerio"]
[Result "1/2-1/2"]
[ECO "C03"]
[WhiteElo "2473"]
[BlackElo "2090"]
[Annotator "RC"]
[PlyCount "160"]
[EventDate "2023.10.22"]
[EventType "swiss"]
[EventCountry "ITA"]
[SourceTitle "playchess.com"]
[Source "ChessBase"]
[SourceQuality "1"]
[TimeControl "40/5400+30:1800+30"]

1. e4 {[%emt 0:00:10]} e6 {[%emt 0:00:12]} 2. d4 {[%emt 0:00:15]} d5 {[%emt 0:00:07]} 3. Nd2 {[%emt 0:00:27]} h6 {[%emt 0:01:14]} 4. Ngf3 {[%emt 0:02:01]} Nf6 {[%emt 0:01:24]} 5. e5 {[%emt 0:00:12]} Nfd7 {[%emt 0:00:21]} 6. c4 {[%emt 0:00:13]} dxc4 {[%emt 0:01:58]} 7. Bxc4 {[%emt 0:05:01]} Nb6 {[%emt 0:01:36]} 8. Bd3 {[%emt 0:01:29]} Nc6 {[%emt 0:10:09]} 9. Ne4 {[%emt 0:01:10]} Nb4 {[%emt 0:05:06]} 10. Bb1 {[%emt 0:01:23]} Bd7 {[%emt 0:01:30]} 11. O-O {[%emt 0:01:21]} Bc6 {[%emt 0:01:29]} 12. a3 {[%emt 0:04:42]} N4d5 {[%emt 0:00:27]} 13. Bd3 {[%emt 0:03:30]} Qd7 {[%emt 0:16:38]} 14. Nc5 {[%emt 0:10:52]} Bxc5 {[%emt 0:00:26]} 15. dxc5 {[%emt 0:00:08]} Na4 {[%emt 0:00:55]} 16. Qc2 {[%emt 0:01:02]} b6 {[%emt 0:10:57]} 17. cxb6 {[%emt 0:01:05]} cxb6 {[%emt 0:01:34]} 18. Nd4 {[%emt 0:04:34]} Nc5 {[%emt 0:00:36]} 19. Be2 {[%emt 0:07:00]} Rc8 {[%emt 0:05:40]} 20. Nxc6 {[%emt 0:05:04]} Qxc6 {[%emt 0:00:13]} 21. b4 {[%emt 0:00:41]} Nd7 {[%emt 0:00:21]} 22. Qxc6 {[%emt 0:00:13]} Rxc6 {[%emt 0:00:07]} 23. Bb5 {[%emt 0:02:14]} Rc7 {[%emt 0:02:05]} 24. Bd2 {[%emt 0:03:19]} Ke7 {[%emt 0:02:09]} 25. f4 {[%emt 0:01:07]} Rc2 {[%emt 0:05:17]} 26. Rf2 {[%emt 0:02:15]} Rhc8 {[%emt 0:04:19]} 27. Ba4 {[%emt 0:00:50]} R2c4 {[%emt 0:04:05]} 28. Rd1 {[%emt 0:04:15]} R8c7 {[%emt 0:13:30]} 29. h4 {[%emt 0:05:49]} Rd4 {[%emt 0:02:11]} 30. h5 {[%emt 0:08:54]} b5 {[%emt 0:02:34]} 31. Bb3 {[%emt 0:04:15]} Rd3 {[%emt 0:00:40]} 32. Rf3 {[%emt 0:02:01]} Rxf3 {[%emt 0:00:23]} 33. gxf3 {[%emt 0:00:10]} N7b6 {[%emt 0:00:33]} 34. Kh2 {[%emt 0:03:21]} Nc4 {[%emt 0:01:24]} 35. Be1 {[%emt 0:05:15]} Nxf4 {[%emt 0:02:28]} 36. Bh4+ {[%emt 0:01:04]} f6 {[%emt 0:00:23]} 37. exf6+ {[%emt 0:00:28]} gxf6 {[%emt 0:00:02]} 38. Bg3 {[%emt 0:01:05]} e5 {[%emt 0:00:10]} 39. Bf2 {[%emt 0:01:00]} Ne6 {[%emt 0:02:13]} 40. a4 {[%emt 0:09:28]} a6 {[%emt 0:01:38]} 41. axb5 {[%emt 0:04:04]} axb5 {[%emt 0:00:07]} 42. Rd5 {[%emt 0:01:53]} Rb7 {[%emt 0:04:41]} 43. Bc5+ {[%emt 0:05:56]} Ke8 {[%emt 0:07:56]} 44. Bc2 {[%emt 0:02:54]} Rd7 {[%emt 0:01:08]} 45. Bg6+ {[%emt 0:09:00]} Kd8 {[%emt 0:00:39]} 46. Rxd7+ {[%emt 0:02:20]} Kxd7 {[%emt 0:00:02]} 47. Bf2 {[%emt 0:00:32]} Nd4 {[%emt 0:04:54]} 48. f4 {[%emt 0:01:16]} Ke6 {[%emt 0:01:58]} 49. fxe5 {[%emt 0:00:39]} Nxe5 {[%emt 0:03:07]} 50. Kg3 {[%emt 0:02:56]} Nf5+ {[%emt 0:02:39]} 51. Kf4 {[%emt 0:01:16]} Nd3+ {[%emt 0:00:38]} 52. Kf3 {[%emt 0:00:11]} Nxf2 {[%emt 0:01:37]} 53. Kxf2 {[%emt 0:00:08]} Ke5 {[%emt 0:01:08]} 54. Ke2 {[%emt 0:00:30]} Nd4+ {[%emt 0:01:57]} 55. Kd3 {[%emt 0:00:19]} Nc6 {[%emt 0:01:18]} 56. Kc3 {[%emt 0:00:09]} Ne7 {[%emt 0:01:25]} 57. Bd3 {[%emt 0:01:02]} Nd5+ {[%emt 0:00:09]} 58. Kb3 {[%emt 0:00:08]} Nc7 {[%emt 0:00:03]} 59. Kc3 {[%emt 0:00:13]} f5 {[%emt 0:00:09]} 60. Be2 {[%emt 0:01:04]} f4 {[%emt 0:01:16]} 61. Kd2 {[%emt 0:00:48]} Kd4 {[%emt 0:00:15]} 62. Bd3 {[%emt 0:01:04]} Nd5 {[%emt 0:00:44]} 63. Bxb5 {[%emt 0:00:23]} Nxb4 {[%emt 0:00:03]} 64. Ke2 {[%emt 0:01:27]} Nd5 {[%emt 0:01:27]} 65. Kf3 {[%emt 0:01:04]} Ke5 {[%emt 0:00:06]} 66. Bd3 {[%emt 0:00:43]} Nc7 {[%emt 0:01:21]} 67. Kg4 {[%emt 0:00:55]} Ne6 {[%emt 0:00:24]} 68. Bb1 {[%emt 0:00:19]} Ng5 {[%emt 0:01:08]} 69. Bc2 {[%emt 0:01:27]} Ne4 {[%emt 0:01:46]} 70. Kf3 {[%emt 0:00:10]} Nd2+ {[%emt 0:00:13]} 71. Ke2 {[%emt 0:00:16]} Nc4 {[%emt 0:00:16]} 72. Kf3 {[%emt 0:00:14]} Ne3 {[%emt 0:00:57]} 73. Bg6 {[%emt 0:00:24]} Nf5 {[%emt 0:00:15]} 74. Kg4 {[%emt 0:00:16]} Nd4 {[%emt 0:01:01]} 75. Bd3 {[%emt 0:00:39]} Ne6 {[%emt 0:00:28]} 76. Bb1 {[%emt 0:00:12]} Ng5 {[%emt 0:01:26]} 77. Bc2 {[%emt 0:00:09]} Ne4 {[%emt 0:00:31]} 78. Kf3 {[%emt 0:00:08]} Nd6 {[%emt 0:00:31]} 79. Kg4 {[%emt 0:00:28]} Ne8 {[%emt 0:00:06]} 80. Kf3 {[%emt 0:00:24]} Ng7 {[%emt 0:01:37]} 1/2-1/2

[Event "FIDE World Senior-50 CC 2023"]
[Site "Terrasini"]
[Date "2023.10.25"]
[Round "1.9"]
[White "Duong, Thanh Nha"]
[Black "Minasian, Artashes"]
[Result "0-1"]
[ECO "A37"]
[WhiteElo "2081"]
[BlackElo "2462"]
[Annotator "RC"]
[PlyCount "70"]
[EventDate "2023.10.22"]
[EventType "swiss"]
[EventCountry "ITA"]
[SourceTitle "playchess.com"]
[Source "ChessBase"]
[SourceQuality "1"]
[TimeControl "40/5400+30:1800+30"]

1. Nf3 {[%emt 0:00:42]} g6 {[%emt 0:00:09]} 2. g3 {[%emt 0:05:17]} Bg7 {[%emt 0:01:14]} 3. Bg2 {[%emt 0:00:11]} c5 {[%emt 0:00:08]} 4. c4 {[%emt 0:00:26]} Nc6 {[%emt 0:00:04]} 5. Nc3 {[%emt 0:00:16]} d6 {[%emt 0:00:06]} 6. O-O {[%emt 0:01:05]} e5 {[%emt 0:00:11]} 7. a3 {[%emt 0:03:30]} Nge7 {[%emt 0:00:17]} 8. b4 {[%emt 0:08:19]} O-O {[%emt 0:03:51]} 9. b5 {[%emt 0:02:29]} Na5 {[%emt 0:00:56]} 10. Rb1 {[%emt 0:33:35]} Nxc4 {[%emt 0:01:10]} 11. d3 {[%emt 0:03:15]} Nb6 {[%emt 0:01:39]} 12. a4 {[%emt 0:02:25]} a5 {[%emt 0:03:45]} 13. Ba3 {[%emt 0:13:22]} Ned5 {[%emt 0:06:21]} 14. Nxd5 {[%emt 0:02:23]} Nxd5 {[%emt 0:00:10]} 15. Rc1 {[%emt 0:00:42]} Be6 {[%emt 0:02:44]} 16. Nd2 {[%emt 0:01:59]} b6 {[%emt 0:06:36]} 17. Nc4 {[%emt 0:01:40]} Ra7 {[%emt 0:00:10]} 18. e3 {[%emt 0:04:17]} f5 {[%emt 0:05:57]} 19. f4 {[%emt 0:01:34]} exf4 {[%emt 0:02:27]} 20. gxf4 {[%emt 0:00:13]} Re7 {[%emt 0:01:46]} 21. Re1 {[%emt 0:00:21]} Bf7 {[%emt 0:00:54]} 22. Qd2 {[%emt 0:03:25]} Rfe8 {[%emt 0:02:14]} 23. e4 {[%emt 0:00:18]} Bd4+ {[%emt 0:01:30]} 24. Kh1 {[%emt 0:00:06]} fxe4 {[%emt 0:03:30]} 25. dxe4 {[%emt 0:00:27]} Nf6 {[%emt 0:00:06]} 26. e5 {[%emt 0:03:56]} Bxc4 {[%emt 0:02:33]} 27. Rxc4 {[%emt 0:01:38]} dxe5 {[%emt 0:00:08]} 28. fxe5 {[%emt 0:04:11]} Rxe5 {[%emt 0:00:10]} 29. Rxe5 {[%emt 0:01:21]} Bxe5 {[%emt 0:01:00]} 30. Qc1 {[%emt 0:01:28]} Qd3 {[%emt 0:01:15]} 31. Bf1 {[%emt 0:00:20]} Qf3+ {[%emt 0:01:09]} 32. Bg2 {[%emt 0:00:10]} Qh5 {[%emt 0:00:07]} 33. Qg1 {[%emt 0:00:53]} Rd8 {[%emt 0:00:29]} 34. Rc1 {[%emt 0:00:08]} Rd3 {[%emt 0:00:44]} 35. Re1 {[%emt 0:00:48]} Rxa3 {[%emt 0:00:21]} 0-1

[Event "FIDE World Senior-50 CC 2023"]
[Site "Terrasini"]
[Date "2023.10.25"]
[Round "1.10"]
[White "Matamoros Franco, Carlos S."]
[Black "Raabe, Peter"]
[Result "1-0"]
[ECO "A11"]
[WhiteElo "2455"]
[BlackElo "2081"]
[Annotator "RC"]
[PlyCount "59"]
[EventDate "2023.10.22"]
[EventType "swiss"]
[EventCountry "ITA"]
[SourceTitle "playchess.com"]
[Source "ChessBase"]
[SourceQuality "1"]
[TimeControl "40/5400+30:1800+30"]

1. Nf3 {[%emt 0:00:03]} d5 {[%emt 0:00:08]} 2. g3 {[%emt 0:00:18]} c6 {[%emt 0:00:26]} 3. c4 {[%emt 0:00:37]} Nf6 {[%emt 0:01:57]} 4. Bg2 {[%emt 0:00:19]} Bf5 {[%emt 0:01:02]} 5. Qb3 {[%emt 0:00:52]} Qb6 {[%emt 0:01:21]} 6. d3 {[%emt 0:00:23]} e6 {[%emt 0:03:01]} 7. Be3 {[%emt 0:03:09]} Qb4+ {[%emt 0:06:32]} 8. Nbd2 {[%emt 0:01:36]} Nbd7 {[%emt 0:02:58]} 9. O-O {[%emt 0:07:38]} Be7 {[%emt 0:02:48]} 10. Qc2 {[%emt 0:01:21]} Qa5 {[%emt 0:05:33]} 11. a3 {[%emt 0:04:04]} O-O {[%emt 0:03:49]} 12. b4 {[%emt 0:01:38]} Qc7 {[%emt 0:01:32]} 13. Nb3 {[%emt 0:01:48]} h6 {[%emt 0:03:58]} 14. Rab1 {[%emt 0:24:41]} Rac8 {[%emt 0:05:28]} 15. cxd5 {[%emt 0:02:27]} exd5 {[%emt 0:07:42]} 16. Rfc1 {[%emt 0:02:21]} Bd6 {[%emt 0:05:21]} 17. Nfd4 {[%emt 0:01:23]} Bh7 {[%emt 0:00:16]} 18. Bh3 {[%emt 0:00:13]} Rfe8 {[%emt 0:05:07]} 19. Qd2 {[%emt 0:01:53]} Qb8 {[%emt 0:03:31]} 20. Nc5 {[%emt 0:03:05]} Rcd8 {[%emt 0:01:36]} 21. Nxd7 {[%emt 0:01:52]} Nxd7 {[%emt 0:00:07]} 22. b5 {[%emt 0:11:52]} c5 {[%emt 0:05:22]} 23. Nc6 {[%emt 0:00:12]} bxc6 {[%emt 0:00:40]} 24. Bxd7 {[%emt 0:00:05]} Rxd7 {[%emt 0:03:55]} 25. bxc6 {[%emt 0:00:12]} Qc7 {[%emt 0:02:48]} 26. cxd7 {[%emt 0:00:07]} Rd8 {[%emt 0:01:07]} 27. Qb2 {[%emt 0:05:45]} c4 {[%emt 0:01:06]} 28. Qb7 {[%emt 0:02:22]} Qxd7 {[%emt 0:00:49]} 29. Qxd7 {[%emt 0:00:36]} Rxd7 {[%emt 0:00:12]} 30. Rb5 {[%emt 0:00:28]} 1-0

[Event "FIDE World Senior-50 CC 2023"]
[Site "Terrasini"]
[Date "2023.10.25"]
[Round "1.11"]
[White "Minnican, Alan"]
[Black "Godena, Michele"]
[Result "1-0"]
[ECO "D00"]
[WhiteElo "2071"]
[BlackElo "2441"]
[Annotator "RC"]
[PlyCount "95"]
[EventDate "2023.10.22"]
[EventType "swiss"]
[EventCountry "ITA"]
[SourceTitle "playchess.com"]
[Source "ChessBase"]
[SourceQuality "1"]
[TimeControl "40/5400+30:1800+30"]

1. d4 {[%emt 0:00:20]} d5 {[%emt 0:00:09]} 2. Bf4 {[%emt 0:00:17]} Bf5 {[%emt 0:02:02]} 3. e3 {[%emt 0:00:31]} e6 {[%emt 0:00:21]} 4. Nc3 {[%emt 0:00:40]} Nf6 {[%emt 0:04:30]} 5. Bd3 {[%emt 0:00:45]} Bxd3 {[%emt 0:10:36]} 6. cxd3 {[%emt 0:00:16]} c6 {[%emt 0:13:02]} 7. Nf3 {[%emt 0:01:46]} Be7 {[%emt 0:00:17]} 8. h3 {[%emt 0:03:39]} O-O {[%emt 0:05:35]} 9. O-O {[%emt 0:03:36]} Qb6 {[%emt 0:12:33]} 10. Rb1 {[%emt 0:06:33]} Nbd7 {[%emt 0:01:47]} 11. Na4 {[%emt 0:03:51]} Qa5 {[%emt 0:06:21]} 12. a3 {[%emt 0:15:40]} Rfc8 {[%emt 0:01:50]} 13. b4 {[%emt 0:01:59]} Qd8 {[%emt 0:01:50]} 14. Qb3 {[%emt 0:05:24]} a5 {[%emt 0:11:44]} 15. Rfc1 {[%emt 0:09:17]} Ra7 {[%emt 0:03:18]} 16. Rc2 {[%emt 0:05:00]} axb4 {[%emt 0:10:07]} 17. axb4 {[%emt 0:00:31]} Rca8 {[%emt 0:05:35]} 18. Nc5 {[%emt 0:14:35]} Qb6 {[%emt 0:00:05]} 19. Ne5 {[%emt 0:04:14]} Nxe5 {[%emt 0:00:15]} 20. Bxe5 {[%emt 0:03:29]} Qb5 {[%emt 0:00:30]} 21. Qc3 {[%emt 0:04:28]} Ra3 {[%emt 0:02:46]} 22. Rb3 {[%emt 0:00:47]} Rxb3 {[%emt 0:00:35]} 23. Qxb3 {[%emt 0:00:18]} b6 {[%emt 0:01:11]} 24. Nb7 {[%emt 0:05:57]} Ne8 {[%emt 0:01:58]} 25. Ra2 {[%emt 0:01:04]} Ra6 {[%emt 0:01:26]} 26. Qc2 {[%emt 0:01:29]} Rxa2 {[%emt 0:01:30]} 27. Qxa2 {[%emt 0:00:05]} f6 {[%emt 0:00:03]} 28. Qa8 {[%emt 0:01:04]} Kf7 {[%emt 0:00:10]} 29. Bg3 {[%emt 0:02:03]} Qxb4 {[%emt 0:00:12]} 30. Qc8 {[%emt 0:01:19]} Nd6 {[%emt 0:02:25]} 31. Bxd6 {[%emt 0:02:38]} Bxd6 {[%emt 0:00:01]} 32. Qd7+ {[%emt 0:00:22]} Be7 {[%emt 0:00:01]} 33. Nd8+ {[%emt 0:00:21]} Kf8 {[%emt 0:01:32]} 34. Nxe6+ {[%emt 0:00:31]} Kf7 {[%emt 0:00:30]} 35. Nd8+ {[%emt 0:01:02]} Kf8 {[%emt 0:00:01]} 36. Ne6+ {[%emt 0:00:51]} Kf7 {[%emt 0:00:01]} 37. Nd8+ {[%emt 0:00:14]} Kf8 {[%emt 0:00:00]} 38. Nxc6 {[%emt 0:01:28]} Qd6 {[%emt 0:00:44]} 39. Qxe7+ {[%emt 0:00:31]} Qxe7 {[%emt 0:00:01]} 40. Nxe7 {[%emt 0:00:09]} Kxe7 {[%emt 0:00:03]} 41. Kf1 {[%emt 0:31:01]} Kd6 {[%emt 0:14:14]} 42. Ke2 {[%emt 0:00:00]} Kc6 {[%emt 0:00:25]} 43. Kd2 {[%emt 0:00:00]} Kb5 {[%emt 0:00:44]} 44. e4 {[%emt 0:00:00]} Kb4 {[%emt 0:04:05]} 45. e5 {[%emt 0:00:00]} Kb5 {[%emt 0:00:26]} 46. Kc3 {[%emt 0:00:00]} h5 {[%emt 0:02:48]} 47. g3 {[%emt 0:00:00]} f5 {[%emt 0:01:54]} 48. h4 {[%emt 0:00:00]} 1-0

[Event "FIDE World Senior-50 CC 2023"]
[Site "Terrasini"]
[Date "2023.10.25"]
[Round "1.12"]
[White "Mohr, Georg"]
[Black "Golovchuk, Oleg"]
[Result "1-0"]
[ECO "C47"]
[WhiteElo "2430"]
[BlackElo "2067"]
[Annotator "RC"]
[PlyCount "49"]
[EventDate "2023.10.22"]
[EventType "swiss"]
[EventCountry "ITA"]
[SourceTitle "playchess.com"]
[Source "ChessBase"]
[SourceQuality "1"]
[TimeControl "40/5400+30:1800+30"]

1. e4 {[%emt 0:00:05]} e5 {[%emt 0:00:08]} 2. Nf3 {[%emt 0:00:07]} Nf6 {[%emt 0:00:09]} 3. Nc3 {[%emt 0:00:09]} Nc6 {[%emt 0:00:07]} 4. a4 {[%emt 0:01:44]} a6 {[%emt 0:00:35]} 5. g3 {[%emt 0:04:57]} Bc5 {[%emt 0:01:51]} 6. Bg2 {[%emt 0:00:06]} d6 {[%emt 0:00:45]} 7. O-O {[%emt 0:00:55]} O-O {[%emt 0:00:38]} 8. d3 {[%emt 0:00:08]} h6 {[%emt 0:00:37]} 9. Be3 {[%emt 0:00:19]} Ng4 {[%emt 0:04:40]} 10. Bxc5 {[%emt 0:05:31]} dxc5 {[%emt 0:00:12]} 11. h3 {[%emt 0:05:07]} Nf6 {[%emt 0:00:09]} 12. Nd2 {[%emt 0:00:06]} Qd4 {[%emt 0:22:18]} 13. Nd5 {[%emt 0:02:49]} Nxd5 {[%emt 0:04:09]} 14. exd5 {[%emt 0:04:07]} Bxh3 {[%emt 0:07:35]} 15. c3 {[%emt 0:11:12]} Qxd3 {[%emt 0:03:43]} 16. Be4 {[%emt 0:00:57]} Bxf1 {[%emt 0:00:10]} 17. Bxd3 {[%emt 0:00:04]} Bxd3 {[%emt 0:00:06]} 18. dxc6 {[%emt 0:00:05]} b6 {[%emt 0:01:51]} 19. Nf3 {[%emt 0:02:45]} e4 {[%emt 0:01:47]} 20. Ne5 {[%emt 0:00:04]} Rad8 {[%emt 0:00:16]} 21. a5 {[%emt 0:01:22]} Rfe8 {[%emt 0:01:59]} 22. Qh5 {[%emt 0:05:10]} f6 {[%emt 0:03:02]} 23. Nxd3 {[%emt 0:04:37]} exd3 {[%emt 0:00:14]} 24. axb6 {[%emt 0:00:04]} cxb6 {[%emt 0:01:37]} 25. c7 {[%emt 0:00:14]} 1-0

[Event "FIDE World Senior-50 CC 2023"]
[Site "Terrasini"]
[Date "2023.10.25"]
[Round "1.13"]
[White "Halmeenmaki, Tuomo"]
[Black "Atalik, Suat"]
[Result "0-1"]
[ECO "E11"]
[WhiteElo "2067"]
[BlackElo "2427"]
[Annotator "RC"]
[PlyCount "72"]
[EventDate "2023.10.22"]
[EventType "swiss"]
[EventCountry "ITA"]
[SourceTitle "playchess.com"]
[Source "ChessBase"]
[SourceQuality "1"]
[TimeControl "40/5400+30:1800+30"]

1. d4 {[%emt 0:00:06]} Nf6 {[%emt 0:00:23]} 2. c4 {[%emt 0:00:07]} e6 {[%emt 0:00:46]} 3. Nf3 {[%emt 0:00:08]} Bb4+ {[%emt 0:00:32]} 4. Nbd2 {[%emt 0:00:14]} d5 {[%emt 0:01:31]} 5. Qa4+ {[%emt 0:04:19]} Nc6 {[%emt 0:00:08]} 6. e3 {[%emt 0:00:18]} a5 {[%emt 0:02:36]} 7. a3 {[%emt 0:04:01]} Be7 {[%emt 0:00:39]} 8. Be2 {[%emt 0:03:29]} O-O {[%emt 0:03:51]} 9. O-O {[%emt 0:00:42]} Bd7 {[%emt 0:00:26]} 10. Qc2 {[%emt 0:00:55]} a4 {[%emt 0:00:11]} 11. e4 {[%emt 0:06:09]} Na5 {[%emt 0:03:55]} 12. Ne5 {[%emt 0:08:12]} dxe4 {[%emt 0:04:59]} 13. Rb1 {[%emt 0:29:58]} Nc6 {[%emt 0:04:00]} 14. Qc3 {[%emt 0:04:06]} Be8 {[%emt 0:00:11]} 15. Nxc6 {[%emt 0:00:44]} Bxc6 {[%emt 0:00:06]} 16. Rd1 {[%emt 0:00:27]} Ne8 {[%emt 0:03:39]} 17. d5 {[%emt 0:04:18]} exd5 {[%emt 0:00:05]} 18. Nxe4 {[%emt 0:01:20]} Nf6 {[%emt 0:07:45]} 19. Ng3 {[%emt 0:03:15]} Qd7 {[%emt 0:10:22]} 20. Bg5 {[%emt 0:04:57]} h6 {[%emt 0:05:00]} 21. Bf4 {[%emt 0:01:10]} Rfe8 {[%emt 0:06:51]} 22. Be5 {[%emt 0:06:05]} Qe6 {[%emt 0:01:32]} 23. Bxc7 {[%emt 0:04:35]} Rac8 {[%emt 0:01:46]} 24. Bf4 {[%emt 0:03:43]} Ne4 {[%emt 0:06:04]} 25. Nxe4 {[%emt 0:08:25]} Qxe4 {[%emt 0:00:36]} 26. Qd2 {[%emt 0:00:12]} dxc4 {[%emt 0:01:38]} 27. Bf3 {[%emt 0:00:11]} Qg6 {[%emt 0:04:59]} 28. Bxc6 {[%emt 0:00:48]} Qxc6 {[%emt 0:00:08]} 29. Qc3 {[%emt 0:01:35]} Bf6 {[%emt 0:01:46]} 30. Qg3 {[%emt 0:00:07]} Rcd8 {[%emt 0:10:19]} 31. h4 {[%emt 0:00:25]} Kh7 {[%emt 0:02:03]} 32. Qg4 {[%emt 0:00:52]} Rxd1+ {[%emt 0:06:45]} 33. Rxd1 {[%emt 0:00:03]} Re4 {[%emt 0:01:26]} 34. Qf3 {[%emt 0:00:52]} Rd4 {[%emt 0:00:52]} 35. Rxd4 {[%emt 0:00:41]} Qxf3 {[%emt 0:00:11]} 36. gxf3 {[%emt 0:00:09]} Bxd4 {[%emt 0:00:04]} 0-1

[Event "FIDE World Senior-50 CC 2023"]
[Site "Terrasini"]
[Date "2023.10.25"]
[Round "1.14"]
[White "Lima, Darcy"]
[Black "Fabiano, Giuseppe"]
[Result "1-0"]
[ECO "A55"]
[WhiteElo "2416"]
[BlackElo "2030"]
[Annotator "RC"]
[PlyCount "73"]
[EventDate "2023.10.22"]
[EventType "swiss"]
[EventCountry "ITA"]
[SourceTitle "playchess.com"]
[Source "ChessBase"]
[SourceQuality "1"]
[TimeControl "40/5400+30:1800+30"]

1. d4 {[%emt 0:00:05]} d6 {[%emt 0:00:00]} 2. c4 {[%emt 0:00:16]} e5 {[%emt 0:00:00]} 3. Nf3 {[%emt 0:00:30]} Nd7 {[%emt 0:00:00]} 4. Nc3 {[%emt 0:00:08]} Ngf6 {[%emt 0:00:00]} 5. e4 {[%emt 0:01:26]} Be7 {[%emt 0:02:27]} 6. Be2 {[%emt 0:00:11]} O-O {[%emt 0:00:28]} 7. O-O {[%emt 0:00:06]} c6 {[%emt 0:00:35]} 8. Re1 {[%emt 0:00:33]} a6 {[%emt 0:00:04]} 9. Bf1 {[%emt 0:02:16]} b5 {[%emt 0:00:08]} 10. a3 {[%emt 0:10:15]} Bb7 {[%emt 0:06:35]} 11. b4 {[%emt 0:04:39]} bxc4 {[%emt 0:02:20]} 12. Bxc4 {[%emt 0:03:31]} Re8 {[%emt 0:05:17]} 13. Qb3 {[%emt 0:10:57]} Rf8 {[%emt 0:00:21]} 14. Bb2 {[%emt 0:00:13]} exd4 {[%emt 0:06:27]} 15. Nxd4 {[%emt 0:00:06]} Ne5 {[%emt 0:00:19]} 16. Bf1 {[%emt 0:00:23]} g6 {[%emt 0:14:03]} 17. Rad1 {[%emt 0:01:09]} Qb6 {[%emt 0:05:42]} 18. f4 {[%emt 0:13:29]} Ned7 {[%emt 0:01:58]} 19. e5 {[%emt 0:16:23]} Nd5 {[%emt 0:00:49]} 20. Nxd5 {[%emt 0:03:31]} cxd5 {[%emt 0:02:58]} 21. Kh1 {[%emt 0:00:19]} dxe5 {[%emt 0:01:58]} 22. fxe5 {[%emt 0:00:02]} Bh4 {[%emt 0:01:46]} 23. g3 {[%emt 0:03:18]} Bg5 {[%emt 0:00:28]} 24. e6 {[%emt 0:04:48]} fxe6 {[%emt 0:06:56]} 25. Bh3 {[%emt 0:01:11]} Rae8 {[%emt 0:18:44]} 26. Bxe6+ {[%emt 0:01:30]} Rxe6 {[%emt 0:00:05]} 27. Rxe6 {[%emt 0:00:04]} Qc7 {[%emt 0:10:23]} 28. Rde1 {[%emt 0:00:38]} Qc4 {[%emt 0:08:00]} 29. Qd1 {[%emt 0:01:28]} Nf6 {[%emt 0:01:25]} 30. Rf1 {[%emt 0:02:16]} Bc8 {[%emt 0:04:12]} 31. Rc6 {[%emt 0:01:30]} Qa2 {[%emt 0:00:19]} 32. Qe2 {[%emt 0:06:29]} Bg4 {[%emt 0:01:06]} 33. Qg2 {[%emt 0:01:51]} Ne4 {[%emt 0:00:32]} 34. Rxf8+ {[%emt 0:01:54]} Kxf8 {[%emt 0:00:01]} 35. Ne6+ {[%emt 0:03:30]} Bxe6 {[%emt 0:00:08]} 36. Bg7+ {[%emt 0:00:03]} Kg8 {[%emt 0:01:56]} 37. Bb2 {[%emt 0:08:02]} 1-0

[Event "FIDE World Senior-50 CC 2023"]
[Site "Terrasini"]
[Date "2023.10.25"]
[Round "1.15"]
[White "Haessel, Dale R."]
[Black "Seul, Georg"]
[Result "1/2-1/2"]
[ECO "E14"]
[WhiteElo "2023"]
[BlackElo "2383"]
[Annotator "RC"]
[PlyCount "49"]
[EventDate "2023.10.22"]
[EventType "swiss"]
[EventCountry "ITA"]
[SourceTitle "playchess.com"]
[Source "ChessBase"]
[SourceQuality "1"]
[TimeControl "40/5400+30:1800+30"]

1. d4 {[%emt 0:00:02]} Nf6 {[%emt 0:00:06]} 2. c4 {[%emt 0:00:03]} e6 {[%emt 0:00:05]} 3. Nf3 {[%emt 0:00:05]} Bb4+ {[%emt 0:00:15]} 4. Nbd2 {[%emt 0:00:05]} b6 {[%emt 0:01:14]} 5. e3 {[%emt 0:06:06]} Bb7 {[%emt 0:01:27]} 6. Bd3 {[%emt 0:00:31]} O-O {[%emt 0:00:35]} 7. O-O {[%emt 0:00:21]} d5 {[%emt 0:04:54]} 8. a3 {[%emt 0:02:45]} Be7 {[%emt 0:00:49]} 9. b4 {[%emt 0:04:50]} dxc4 {[%emt 0:18:26]} 10. Nxc4 {[%emt 0:03:35]} Nbd7 {[%emt 0:01:40]} 11. Qc2 {[%emt 0:05:31]} c5 {[%emt 0:09:39]} 12. dxc5 {[%emt 0:12:35]} bxc5 {[%emt 0:01:03]} 13. b5 {[%emt 0:00:53]} Qc7 {[%emt 0:03:27]} 14. Bb2 {[%emt 0:12:35]} Bxf3 {[%emt 0:10:15]} 15. gxf3 {[%emt 0:00:05]} Qb7 {[%emt 0:00:25]} 16. f4 {[%emt 0:01:52]} Qxb5 {[%emt 0:06:14]} 17. Rab1 {[%emt 0:03:01]} Qc6 {[%emt 0:00:48]} 18. Ne5 {[%emt 0:01:18]} Nxe5 {[%emt 0:15:59]} 19. fxe5 {[%emt 0:00:29]} Qf3 {[%emt 0:09:27]} 20. exf6 {[%emt 0:00:51]} Qg4+ {[%emt 0:00:11]} 21. Kh1 {[%emt 0:00:01]} Qf3+ {[%emt 0:00:08]} 22. Kg1 {[%emt 0:00:04]} Qg4+ {[%emt 0:00:11]} 23. Kh1 {[%emt 0:00:00]} Qf3+ {[%emt 0:00:10]} 24. Kg1 {[%emt 0:00:01]} Qg4+ {[%emt 0:00:07]} 25. Kh1 {[%emt 0:45:21]} 1/2-1/2